fUSD/lending_fUSD_20240707
["ID","MTS","AMOUNT","RATE_DAILY","PERIOD"]
[331421820,1720375802802,-165.05511883,0.00011587,2]
[331421822,1720375802834,-281.8112595,0.00011606,2]
[331421823,1720375802866,-701.0,0.00011687,2]
[331421825,1720375802897,-293.73791624,0.00011688,2]
[331421827,1720375802937,-396.63,0.00011708,2]
[331421829,1720375802969,-150.0,0.00011727,2]
[331421831,1720375803003,-250.0,0.00011731,2]
[331421835,1720375803394,-1000.0,0.00011739,2]
[331421836,1720375803433,-250.0,0.00011748,2]
[331421837,1720375803466,-610.20304414,0.0001175,2]
[331421851,1720375832366,-561.43695586,0.0001175,2]
[331421852,1720375832376,-150.32,0.00011786,2]
[331421853,1720375832385,-256.64,0.00011818,2]
[331421854,1720375832394,-1971.62,0.00011832,2]
[331421855,1720375832404,-150.32,0.00011991,2]
[331421856,1720375832413,-66.96913913,0.00012072,2]
[331421857,1720375832425,-319.23086087,0.00012072,2]
[331421858,1720375832439,-514.56707229,0.00012193,2]
[331421859,1720375832451,-318.86689986,0.00012193,2]
[331421860,1720375832465,-218.75100734,0.00012193,2]
[331421861,1720375832474,-150.32,0.00012196,2]
[331421862,1720375832484,-300.0,0.00012199,2]
[331421863,1720375832495,-157.22766932,0.000122,2]
[331421864,1720375832507,-641.43342479,0.000122,2]
[331421865,1720375832520,-55.92890589,0.000122,2]
[331421866,1720375832532,-854.59,0.000122,2]
[331421867,1720375832543,-1653.75918528,0.000122,2]
[331421868,1720375832555,-51.71081472,0.000122,2]
[331421869,1720375832564,-333.96,0.000123,2]
[331421870,1720375832574,-854.59,0.000123,2]
[331421871,1720375832583,-419.26,0.000123,2]
[331421872,1720375832592,-419.26,0.000123,2]
[331421873,1720375832603,-854.59,0.000123,2]
[331421874,1720375832613,-854.59,0.000123,2]
[331421875,1720375832623,-418.9,0.000123,2]
[331421876,1720375832633,-1164.88174319,0.00012302,2]
[331421877,1720375832647,-227.22563372,0.00012302,2]
[331421878,1720375832657,-150.32,0.000124,2]
[331421879,1720375832667,-15042.0,0.00012488,2]
[331421880,1720375832678,-215.6511,0.0001257,2]
[331421881,1720375832688,-167.57,0.00012607,2]
[331421882,1720375832698,-150.0,0.00012627,2]
[331421883,1720375832707,-150.0,0.00012628,2]
[331421884,1720375832717,-150.0,0.00012637,2]
[331421885,1720375832726,-150.0,0.00012642,2]
[331421886,1720375832736,-150.0,0.00012652,2]
[331421887,1720375832746,-150.0,0.00012652,2]
[331421888,1720375832756,-150.0,0.00012657,2]
[331421889,1720375832766,-150.0,0.00012658,2]
[331421890,1720375832776,-150.0,0.00012658,2]
[331421891,1720375832786,-150.0,0.00012659,2]
[331421892,1720375832796,-150.0,0.00012663,2]
[331421893,1720375832806,-150.0,0.00012663,2]
[331421894,1720375832815,-150.0,0.00012671,2]
[331421895,1720375832825,-150.0,0.00012679,2]
[331421896,1720375832835,-150.0,0.00012683,2]
[331421897,1720375832845,-150.0,0.00012683,2]
[331421898,1720375832855,-150.0,0.00012687,2]
[331421899,1720375832865,-150.0,0.00012688,2]
[331421900,1720375832874,-150.0,0.00012697,2]
[331421901,1720375832884,-150.0,0.00012701,2]
[331421902,1720375832894,-150.0,0.00012705,2]
[331421903,1720375832903,-150.0,0.00012714,2]
[331421904,1720375832913,-150.0,0.00012719,2]
[331421905,1720375832923,-150.0,0.00012723,2]
[331421906,1720375832936,-150.0,0.00012725,2]
[331421907,1720375832946,-150.0,0.00012725,2]
[331421908,1720375832955,-150.0,0.00012727,2]
[331421909,1720375832968,-150.0,0.00012728,2]
[331421910,1720375832978,-150.0,0.00012733,2]
[331421911,1720375832987,-150.0,0.00012734,2]
[331421912,1720375832997,-150.0,0.00012735,2]
[331421913,1720375833008,-150.0,0.00012739,2]
[331421914,1720375833018,-150.0,0.00012741,2]
[331421915,1720375833028,-150.0,0.00012745,2]
[331421916,1720375833037,-150.0,0.0001275,2]
[331421917,1720375833049,-44.97608637,0.00012753,2]
[331421918,1720375833062,-105.02391363,0.00012753,2]
[331421919,1720375833072,-150.0,0.00012754,2]
[331421920,1720375833082,-150.0,0.00012757,2]
[331421921,1720375833092,-100.36224216,0.00012777,2]
[331421922,1720375833109,-49.63775784,0.00012777,2]
[331421923,1720375833120,-150.0,0.00012778,2]
[331421924,1720375833131,-150.0,0.00012781,2]
[331421925,1720375833141,-62.97559342,0.00012781,2]
[331421926,1720375833156,-87.02440658,0.00012781,2]
[331421927,1720375833168,-150.0,0.00012782,2]
[331421928,1720375833180,-94.93850232,0.00012782,2]
[331421929,1720375833191,-55.06149768,0.00012782,2]
[331421930,1720375833201,-150.0,0.00012784,2]
[331421931,1720375833211,-150.0,0.00012786,2]
[331421932,1720375833220,-150.0,0.00012793,2]
[331421933,1720375833230,-150.0,0.00012798,2]
[331421934,1720375833240,-150.0,0.00012801,2]
[331421935,1720375833249,-150.0,0.00012808,2]
[331421936,1720375833259,-150.0,0.00012813,2]
[331421937,1720375833269,-150.0,0.00012817,2]
[331421938,1720375833278,-150.0,0.00012821,2]
[331421939,1720375833288,-150.0,0.00012823,2]
[331421940,1720375833297,-150.0,0.00012824,2]
[331421941,1720375833308,-150.0,0.00012826,2]
[331421942,1720375833317,-150.0,0.00012827,2]
[331421943,1720375833327,-150.0,0.0001283,2]
[331421944,1720375833338,-150.0,0.00012832,2]
[331421945,1720375833349,-150.0,0.00012833,2]
[331421946,1720375833360,-150.0,0.00012836,2]
[331421947,1720375833372,-150.0,0.00012845,2]
[331421948,1720375833383,-150.0,0.00012845,2]
[331421949,1720375833396,-150.0,0.00012848,2]
[331421950,1720375833406,-150.0,0.00012848,2]
[331421951,1720375833417,-150.0,0.00012857,2]
[331421952,1720375833431,-150.0,0.00012864,2]
[331421953,1720375833441,-150.0,0.00012868,2]
[331421954,1720375833452,-150.0,0.00012873,2]
[331421955,1720375833464,-150.0,0.00012877,2]
[331421956,1720375833474,-424.55,0.00012877,2]
[331421957,1720375833485,-164.95,0.00012877,2]
[331421958,1720375833496,-150.0,0.00012877,2]
[331421959,1720375833506,-424.55,0.00012877,2]
[331421960,1720375833515,-150.0,0.00012877,2]
[331421961,1720375833526,-164.95,0.00012877,2]
[331421962,1720375833537,-150.0,0.00012877,2]
[331421963,1720375833547,-421.42,0.00012877,2]
[331421964,1720375833558,-150.0,0.00012877,2]
[331421965,1720375833568,-164.95,0.00012877,2]
[331421966,1720375833578,-150.0,0.00012877,2]
[331421967,1720375833588,-164.95,0.00012877,2]
[331421968,1720375833598,-164.95,0.00012877,2]
[331421969,1720375833607,-164.95,0.00012877,2]
[331421970,1720375833618,-163.85,0.00012877,2]
[331421971,1720375833627,-150.0,0.00012877,2]
[331421972,1720375833637,-150.0,0.0001288,2]
[331421973,1720375833647,-150.0,0.0001288,2]
[331421974,1720375833656,-150.0,0.00012883,2]
[331421975,1720375833666,-150.0,0.00012889,2]
[331421976,1720375833677,-150.0,0.00012893,2]
[331421977,1720375833686,-500.0,0.00012895,2]
[331421978,1720375833696,-150.0,0.00012895,2]
[331421979,1720375833706,-500.0,0.00012896,2]
[331421980,1720375833715,-150.0,0.00012898,2]
[331421981,1720375833724,-150.0,0.00012899,2]
[331421982,1720375833734,-3268.9447,0.000129,2]
[331421983,1720375833746,-5963.3719657,0.000129,2]
[331421984,1720375833758,-1459.9214343,0.000129,2]
[331421985,1720375833768,-4243.7712,0.000129,2]
[331421986,1720375833778,-3768.5956,0.000129,2]
[331421987,1720375833787,-3505.662,0.000129,2]
[331421988,1720375833796,-7500.0,0.000129,2]
[331421989,1720375833806,-319.05409827,0.000129,2]
[331421990,1720375833815,-322.76773477,0.000129,2]
[331421991,1720375833825,-150.0,0.0001297,2]
[331421992,1720375833834,-150.0,0.00012977,2]
[331421993,1720375833844,-10000.0,0.00012998,2]
[331421994,1720375833853,-150.0,0.00012998,2]
[331421995,1720375833862,-150.0,0.00012999,2]
[331421996,1720375833872,-4200.0209979,0.00012999,2]
[331421997,1720375833881,-528.0,0.00013,2]
[331421998,1720375833890,-32117.39730556,0.00013,2]
[331421999,1720375833902,-690.20000005,0.00013,2]
[331422000,1720375833913,-1800.0,0.00013,2]
[331422012,1720375839806,-283.96,0.00012998,2]
[331422015,1720375841290,-1416.75953191,0.00012998,2]
[331422016,1720375841346,-6888.4231416,0.00012998,2]
[331422017,1720375841357,-752.81147101,0.00012998,2]
[331422018,1720375841369,-658.04585548,0.00012998,2]
[331422019,1720375841378,-1336.20934794,0.00013,2]
[331422085,1720375843114,-150.0,0.00012819,2]
[331422086,1720375843123,-150.0,0.00012846,2]
[331422087,1720375843132,-150.0,0.00012979,2]
[331422088,1720375843141,-8963.94468788,0.00012998,2]
[331422089,1720375843150,-5978.45225247,0.00013,2]
[331422090,1720375843161,-2992.66511614,0.00013,2]
[331422091,1720375843184,-4304.832246,0.00013,2]
[331422092,1720375843310,-4765.843978,0.00013,2]
[331422094,1720375844446,167.88,0.00010959,2]
[331422113,1720375846282,-1400.55359634,0.00013,2]
[331422116,1720375846294,-287.09097869,0.00013,2]
[331422119,1720375846427,-15031.09902767,0.00013,2]
[331422121,1720375846463,-1425.2768386,0.00013,2]
[331422123,1720375846475,-380.51527857,0.00013,2]
[331422133,1720375854396,839.44,0.00010959,2]
[331422135,1720375908825,960.15778522,0.00010959,2]
[331422136,1720376007431,651.60629957,0.00011199,2]
[331422137,1720376051069,954.63821922,0.00011199,2]
[331422138,1720376161755,44940.90221516,0.00011199,2]
[331422139,1720376174310,202.47730064,0.00011199,2]
[331422140,1720376177323,367.11383788,0.00011199,2]
[331422141,1720376225105,5384.53588574,0.00011199,2]
[331422142,1720376258695,383.25,9.93e-05,2]
[331422143,1720376266055,173.55,9.466e-05,2]
[331422144,1720376340794,308.22585228,0.00011199,2]
[331422145,1720376349961,444.34430038,0.00011199,2]
[331422146,1720376377326,361.29575595,0.00011199,2]
[331422147,1720376381372,1500.0,0.00011199,2]
[331422148,1720376479638,155.34702634,0.00011199,2]
[331422149,1720376537959,292.56780445,0.00011199,2]
[331422150,1720376557113,8721.70958708,0.00011199,2]
[331422151,1720376575702,3393.51140613,0.00011199,2]
[331422152,1720376593914,484.21355964,0.00011199,2]
[331422153,1720376614907,731.29876733,0.00011199,2]
[331422154,1720376616800,474.80233104,0.00011199,2]
[331422158,1720376639438,647.26467047,0.00011199,2]
[331422159,1720376667391,528.66553933,0.00011199,2]
[331422163,1720376718757,155.16151155,0.00011199,2]
[331422165,1720376724106,161.14038057,0.00011199,2]
[331422167,1720376735617,158.25429544,0.00011199,2]
[331422168,1720376736054,155.54679538,0.00011199,2]
[331422170,1720376744084,266.10658237,0.00011199,2]
[331422173,1720376760285,246.53949848,0.00011199,2]
[331422175,1720376776933,366.88750614,0.00011199,2]
[331422176,1720376787814,211.67761017,0.00011199,2]
[331422177,1720376788778,300.0,0.00011199,2]
[331422178,1720376797627,300.45761708,0.00011199,2]
[331422179,1720376804990,218.51180568,0.00011199,2]
[331422180,1720376823180,227.22563372,0.00011199,2]
[331422182,1720376897692,180.42,9.435e-05,2]
[331422190,1720377007357,307.18748065,0.00011199,2]
[331422191,1720377007782,-2000.0,0.00011306,2]
[331422192,1720377007815,-585.0,0.00011383,2]
[331422193,1720377007849,-281.5182,0.00011406,2]
[331422194,1720377007882,-227.22563372,0.00011436,2]
[331422195,1720377007916,-159.90727442,0.00011585,2]
[331422196,1720377007949,-186.34269807,0.00011774,2]
[331422197,1720377011043,400.33,9.911e-05,2]
[331422198,1720377032115,-63.65730193,0.00011774,2]
[331422199,1720377032125,-317.3,0.00011786,2]
[331422200,1720377032134,-250.0,0.00011806,2]
[331422201,1720377032144,-300.0,0.00011809,2]
[331422202,1720377032153,-10215.14,0.0001181,2]
[331422203,1720377032162,-427.18155602,0.00011812,2]
[331422204,1720377032187,-178.93844398,0.00011812,2]
[331422205,1720377032197,-149.27746557,0.00011832,2]
[331422208,1720377032253,-19.86253443,0.00011832,2]
[331422209,1720377032266,-200.0,0.00011848,2]
[331422210,1720377032275,-85.09686466,0.00011848,2]
[331422211,1720377032287,-65.89313534,0.00011848,2]
[331422212,1720377032296,-499.99,0.00011882,2]
[331422213,1720377032306,-454.78,0.00011882,2]
[331422214,1720377032315,-167.57,0.00011914,2]
[331422215,1720377032325,-219.57,0.00012076,2]
[331422216,1720377032334,-400.33,0.00012175,2]
[331422217,1720377032343,-504.94138761,0.00012314,2]
[331422218,1720377032353,-1600.48542901,0.00012324,2]
[331422219,1720377032368,-1893.96960389,0.00012324,2]
[331422220,1720377032410,-360.699997,0.00012324,2]
[331422238,1720377039146,-2065.0,0.00012324,2]
[331422239,1720377039157,-318.20514663,0.00012324,2]
[331422240,1720377039168,-17651.63982347,0.00012324,2]
[331422241,1720377039178,-854.33,0.00012384,2]
[331422242,1720377039188,-1270.57,0.00012384,2]
[331422243,1720377039198,-150.0,0.00012727,2]
[331422244,1720377039208,-1500.0,0.00012727,2]
[331422245,1720377039217,-150.0,0.00012728,2]
[331422246,1720377039227,-150.0,0.00012732,2]
[331422247,1720377039237,-150.0,0.00012735,2]
[331422248,1720377039247,-150.0,0.00012737,2]
[331422249,1720377039256,-150.0,0.00012737,2]
[331422250,1720377039268,-150.0,0.00012742,2]
[331422251,1720377039278,-150.0,0.00012749,2]
[331422252,1720377039287,-150.0,0.00012752,2]
[331422253,1720377039296,-150.0,0.00012773,2]
[331422254,1720377039306,-150.0,0.00012774,2]
[331422255,1720377039315,-150.0,0.00012778,2]
[331422256,1720377039325,-150.0,0.00012778,2]
[331422257,1720377039334,-150.0,0.00012778,2]
[331422258,1720377039343,-150.0,0.00012779,2]
[331422259,1720377039353,-150.0,0.00012781,2]
[331422260,1720377039362,-150.0,0.00012782,2]
[331422261,1720377039374,-150.0,0.00012783,2]
[331422262,1720377039384,-150.0,0.00012784,2]
[331422263,1720377039393,-150.0,0.00012787,2]
[331422264,1720377039403,-150.0,0.00012789,2]
[331422265,1720377039412,-150.0,0.0001279,2]
[331422266,1720377039423,-150.0,0.00012794,2]
[331422267,1720377039432,-1500.0,0.00012794,2]
[331422268,1720377039442,-1500.0,0.000128,2]
[331422269,1720377039453,-150.0,0.00012803,2]
[331422270,1720377039466,-150.0,0.00012805,2]
[331422271,1720377039477,-150.0,0.00012808,2]
[331422272,1720377039487,-150.0,0.00012811,2]
[331422273,1720377039497,-150.0,0.00012816,2]
[331422274,1720377039506,-150.0,0.00012819,2]
[331422275,1720377039523,-150.0,0.00012824,2]
[331422276,1720377039533,-150.0,0.00012826,2]
[331422277,1720377039543,-150.0,0.00012827,2]
[331422278,1720377039553,-150.0,0.00012829,2]
[331422279,1720377039562,-150.0,0.00012831,2]
[331422280,1720377039572,-150.0,0.00012833,2]
[331422281,1720377039582,-150.0,0.00012836,2]
[331422282,1720377039592,-150.0,0.00012839,2]
[331422283,1720377039601,-150.0,0.0001284,2]
[331422284,1720377039611,-150.0,0.00012842,2]
[331422285,1720377039621,-1500.0,0.00012843,2]
[331422286,1720377039631,-150.0,0.00012848,2]
[331422287,1720377039640,-1500.0,0.00012849,2]
[331422288,1720377039650,-150.0,0.00012852,2]
[331422289,1720377039660,-150.0,0.00012853,2]
[331422290,1720377039673,-150.0,0.00012855,2]
[331422291,1720377039683,-150.0,0.00012856,2]
[331422292,1720377039693,-150.0,0.00012858,2]
[331422293,1720377039703,-150.0,0.00012859,2]
[331422294,1720377039712,-150.0,0.00012862,2]
[331422295,1720377039722,-214.49213092,0.00012866,2]
[331422296,1720377039735,-150.0,0.00012867,2]
[331422297,1720377039745,-150.0,0.00012869,2]
[331422298,1720377039755,-643.34418,0.0001287,2]
[331422299,1720377039764,-643.34419,0.0001287,2]
[331422300,1720377039774,-150.0,0.00012876,2]
[331422301,1720377039783,-150.0,0.00012877,2]
[331422302,1720377039794,-150.0,0.00012881,2]
[331422303,1720377039804,-150.0,0.00012883,2]
[331422304,1720377039814,-150.0,0.00012884,2]
[331422305,1720377039823,-150.0,0.00012885,2]
[331422306,1720377039833,-150.0,0.00012885,2]
[331422307,1720377039843,-150.0,0.00012885,2]
[331422308,1720377039853,-150.0,0.00012888,2]
[331422309,1720377039863,-150.0,0.00012888,2]
[331422310,1720377039877,-150.0,0.0001289,2]
[331422311,1720377039886,-22073.24504756,0.0001289,2]
[331422312,1720377039896,-150.0,0.00012892,2]
[331422313,1720377039905,-150.0,0.00012894,2]
[331422314,1720377039915,-150.0,0.00012894,2]
[331422315,1720377039925,-2383.3377384,0.000129,2]
[331422316,1720377039938,-7051.7438616,0.000129,2]
[331422317,1720377039948,-495.61143604,0.000129,2]
[331422318,1720377040763,-385.85878321,0.00012656,2]
[331422319,1720377040773,-150.0,0.00012738,2]
[331422320,1720377040783,-150.0,0.00012788,2]
[331422321,1720377040794,-150.0,0.00012805,2]
[331422322,1720377040803,-1214.67149284,0.000129,2]
[331422323,1720377040815,-1720.39690758,0.000129,2]
[331422324,1720377040844,-150.0,0.00012779,2]
[331422325,1720377040854,-150.0,0.00012883,2]
[331422326,1720377040864,-64.82116917,0.000129,2]
[331422327,1720377040892,-150.0,0.00012751,2]
[331422328,1720377040902,-755.21005613,0.000129,2]
[331422329,1720377040913,-488.82882675,0.000129,2]
[331422330,1720377040932,-840.41942508,0.000129,2]
[331422331,1720377041005,-150.0,0.00012739,2]
[331422332,1720377041018,-150.0,0.00012761,2]
[331422333,1720377041027,-150.0,0.00012765,2]
[331422334,1720377041037,-150.0,0.00012783,2]
[331422335,1720377041047,-150.0,0.00012822,2]
[331422336,1720377041056,-150.0,0.00012848,2]
[331422337,1720377041066,-1106.09428641,0.000129,2]
[331422338,1720377041075,-2362.11490606,0.000129,2]
[331422339,1720377041094,-150.0,0.00012741,2]
[331422340,1720377041103,-608.54168234,0.000129,2]
[331422362,1720377044195,-150.0,0.00012731,2]
[331422363,1720377044204,-150.0,0.00012732,2]
[331422364,1720377044213,-150.0,0.00012734,2]
[331422365,1720377044223,-150.0,0.00012736,2]
[331422366,1720377044232,-150.0,0.0001274,2]
[331422367,1720377044241,-150.0,0.00012743,2]
[331422368,1720377044251,-150.0,0.00012746,2]
[331422369,1720377044260,-150.0,0.00012747,2]
[331422370,1720377044271,-150.0,0.0001275,2]
[331422371,1720377044280,-150.0,0.00012757,2]
[331422372,1720377044292,-150.0,0.00012757,2]
[331422373,1720377044301,-150.0,0.00012761,2]
[331422374,1720377044312,-150.0,0.00012762,2]
[331422375,1720377044323,-150.0,0.00012774,2]
[331422376,1720377044333,-150.0,0.00012774,2]
[331422377,1720377044343,-150.0,0.00012779,2]
[331422378,1720377044353,-150.0,0.00012781,2]
[331422379,1720377044363,-150.0,0.00012782,2]
[331422380,1720377044377,-150.0,0.00012792,2]
[331422381,1720377044387,-150.0,0.00012794,2]
[331422382,1720377044397,-150.0,0.00012815,2]
[331422383,1720377044408,-150.0,0.00012818,2]
[331422384,1720377044417,-150.0,0.00012818,2]
[331422385,1720377044427,-150.0,0.00012824,2]
[331422386,1720377044439,-150.0,0.00012826,2]
[331422387,1720377044450,-150.0,0.0001283,2]
[331422388,1720377044459,-150.0,0.00012833,2]
[331422389,1720377044468,-150.0,0.00012834,2]
[331422390,1720377044477,-150.0,0.00012844,2]
[331422391,1720377044486,-150.0,0.00012859,2]
[331422392,1720377044495,-150.0,0.0001286,2]
[331422393,1720377044504,-150.0,0.00012867,2]
[331422394,1720377044514,-150.0,0.00012872,2]
[331422395,1720377044526,-150.0,0.00012894,2]
[331422396,1720377044536,-150.0,0.00012894,2]
[331422397,1720377044544,-262.9138116,0.000129,2]
[331422398,1720377044553,-4667.9561884,0.000129,2]
[331422399,1720377044565,-339.9825,0.000129,2]
[331422400,1720377044576,-557.8211037,0.000129,2]
[331422401,1720377044596,-919.21862842,0.000129,2]
[331422402,1720377044616,-2412.0,0.000129,2]
[331422403,1720377045765,530.55,0.00010959,2]
[331422427,1720377046505,-150.0,0.00012741,2]
[331422428,1720377046515,-139.78365456,0.00012742,2]
[331422429,1720377046530,-10.21634544,0.00012742,2]
[331422430,1720377046539,-150.0,0.00012745,2]
[331422431,1720377046548,-150.0,0.0001275,2]
[331422432,1720377046558,-120.39328626,0.00012755,2]
[331422433,1720377046569,-29.60671374,0.00012755,2]
[331422434,1720377046579,-150.0,0.00012755,2]
[331422435,1720377046588,-150.0,0.00012757,2]
[331422436,1720377046598,-150.0,0.00012763,2]
[331422437,1720377046607,-150.0,0.0001277,2]
[331422438,1720377046617,-150.0,0.00012772,2]
[331422439,1720377046626,-150.0,0.00012791,2]
[331422440,1720377046636,-36.72052253,0.00012803,2]
[331422441,1720377046648,-113.27947747,0.00012803,2]
[331422442,1720377046657,-150.0,0.0001282,2]
[331422443,1720377046666,-150.0,0.00012821,2]
[331422444,1720377046675,-150.0,0.00012827,2]
[331422445,1720377046684,-32.86052252,0.00012833,2]
[331422446,1720377046734,-117.13947748,0.00012833,2]
[331422447,1720377046744,-150.0,0.00012838,2]
[331422448,1720377046753,-150.0,0.00012842,2]
[331422449,1720377046763,-150.0,0.00012849,2]
[331422450,1720377046774,-150.0,0.00012871,2]
[331422451,1720377046784,-150.0,0.00012875,2]
[331422452,1720377046793,-150.0,0.00012881,2]
[331422453,1720377046803,-150.0,0.00012896,2]
[331422454,1720377046813,-157.66052252,0.000129,2]
[331422455,1720377046840,-150.0,0.00012803,2]
[331422456,1720377046850,-5358.72585696,0.000129,2]
[331422457,1720377046859,-2562.089,0.000129,2]
[331422458,1720377046869,-404.1856,0.000129,2]
[331422459,1720377046879,-2087.5524,0.000129,2]
[331422460,1720377046890,-466.9961,0.000129,2]
[331422461,1720377046902,-364.8211,0.000129,2]
[331422462,1720377046913,-2500.0,0.000129,2]
[331422463,1720377046922,-2500.0,0.000129,2]
[331422464,1720377046931,-150.0,0.00012901,2]
[331422465,1720377046940,-150.0,0.00012901,2]
[331422466,1720377046950,-150.0,0.00012903,2]
[331422467,1720377046959,-150.0,0.00012905,2]
[331422468,1720377046969,-150.0,0.00012907,2]
[331422469,1720377046978,-150.0,0.00012909,2]
[331422470,1720377046989,-150.0,0.0001291,2]
[331422471,1720377047000,-150.0,0.00012912,2]
[331422472,1720377047011,-150.0,0.00012912,2]
[331422473,1720377047022,-150.0,0.00012913,2]
[331422474,1720377047032,-150.0,0.00012913,2]
[331422475,1720377047042,-150.0,0.00012914,2]
[331422476,1720377047051,-150.0,0.00012914,2]
[331422477,1720377047061,-150.0,0.00012915,2]
[331422478,1720377047073,-150.0,0.00012916,2]
[331422479,1720377047082,-150.0,0.00012916,2]
[331422480,1720377047091,-150.0,0.00012917,2]
[331422481,1720377047101,-150.0,0.00012919,2]
[331422482,1720377047111,-150.0,0.00012919,2]
[331422483,1720377047120,-150.0,0.00012921,2]
[331422484,1720377047130,-150.0,0.00012921,2]
[331422485,1720377047139,-150.0,0.00012922,2]
[331422486,1720377047149,-150.0,0.00012924,2]
[331422487,1720377047159,-150.0,0.00012925,2]
[331422488,1720377047169,-150.0,0.00012925,2]
[331422489,1720377047179,-150.0,0.00012926,2]
[331422490,1720377047188,-150.0,0.00012926,2]
[331422491,1720377047198,-150.0,0.00012927,2]
[331422492,1720377047216,-150.0,0.00012933,2]
[331422493,1720377047228,-150.0,0.00012933,2]
[331422494,1720377047238,-533.6633,0.00012935,2]
[331422495,1720377047249,-150.0,0.00012937,2]
[331422496,1720377047258,-150.0,0.00012938,2]
[331422497,1720377047268,-150.0,0.00012941,2]
[331422498,1720377047278,-150.0,0.00012942,2]
[331422499,1720377047288,-150.0,0.00012945,2]
[331422500,1720377047298,-150.0,0.00012946,2]
[331422501,1720377047308,-150.0,0.00012947,2]
[331422502,1720377047318,-150.0,0.0001295,2]
[331422503,1720377047327,-150.0,0.00012951,2]
[331422504,1720377047336,-150.0,0.00012955,2]
[331422505,1720377047346,-150.0,0.00012955,2]
[331422506,1720377047356,-150.0,0.00012958,2]
[331422507,1720377047368,-150.0,0.00012958,2]
[331422508,1720377047378,-150.0,0.00012958,2]
[331422509,1720377047387,-150.0,0.00012959,2]
[331422510,1720377047397,-150.0,0.0001296,2]
[331422511,1720377047407,-150.0,0.00012963,2]
[331422512,1720377047417,-150.0,0.00012963,2]
[331422513,1720377047427,-150.0,0.00012964,2]
[331422514,1720377047437,-150.0,0.00012965,2]
[331422515,1720377047449,-150.0,0.00012966,2]
[331422516,1720377047459,-150.0,0.00012966,2]
[331422517,1720377047468,-420.0,0.00012967,2]
[331422518,1720377047478,-150.0,0.00012968,2]
[331422519,1720377047488,-150.0,0.00012968,2]
[331422520,1720377047498,-150.0,0.0001297,2]
[331422521,1720377047507,-150.0,0.00012971,2]
[331422522,1720377047517,-150.0,0.00012973,2]
[331422523,1720377047528,-150.0,0.00012975,2]
[331422524,1720377047539,-150.0,0.00012975,2]
[331422525,1720377047549,-150.0,0.00012978,2]
[331422526,1720377047559,-524.0,0.00012982,2]
[331422527,1720377047569,-150.0,0.00012982,2]
[331422528,1720377047579,-150.0,0.00012983,2]
[331422529,1720377047589,-150.0,0.00012986,2]
[331422530,1720377047599,-150.0,0.00012986,2]
[331422531,1720377047609,-150.0,0.00012987,2]
[331422532,1720377047619,-150.0,0.00012989,2]
[331422533,1720377047630,-150.0,0.00012989,2]
[331422534,1720377047639,-150.0,0.00012989,2]
[331422535,1720377047649,-150.0,0.00012992,2]
[331422536,1720377047659,-150.0,0.00012993,2]